Cogmind - Beta 15 @@@ ROGUE MODE // 2025.06.04 @ 01:42:09 Player: CL-1C0 Result: Self-destructed Performance ------------- Evolutions (2) 1000 Regions Visited (3) 600 Robots Destroyed (1) 5 Value Destroyed (45) 45 Prototype IDs (0) 0 Alien Tech Used (0) 0 Bonus (200) 200 TOTAL SCORE: 1850 Bonus ------- Pacifist 200 Cogmind --------- Core Integrity 440/550 Matter 235/300 Energy 100/100 System Corruption 0% Temperature Cool (0) Movement Flying (40) Location -8/Materials Parts ------- > --- POWER (1) -------- (None) > --- PROPULSION (2) --- Flight Unit > --- UTILITY (6) ------ Improved Melee Analysis Suite Improved Melee Analysis Suite Improved Melee Analysis Suite Improved Melee Analysis Suite > --- WEAPON (2) ------- (None) > --- INVENTORY (5) ---- Improved Ion Engine Light Nuclear Core Terrain Scanner Maul Peak State ------------ > --- POWER ------------ (None) > --- PROPULSION ------- Flight Unit > --- UTILITY ---------- Improved Melee Analysis Suite Improved Melee Analysis Suite Improved Melee Analysis Suite Improved Melee Analysis Suite > --- WEAPON ----------- (None) > --- INVENTORY -------- Improved Ion Engine Light Nuclear Core Terrain Scanner Maul [Rating: 17] Favorites ----------- Power Light Ion Engine Engine Light Ion Engine Propulsion Flight Unit Leg Aluminum Leg Flight Unit Flight Unit Utility Improved Melee Analysis Suite Device Terrain Scanner Storage Small Storage Unit Processor Improved Melee Analysis Suite Weapon EM Pulse Gun Energy Gun EM Pulse Gun Ballistic Gun Assault Rifle Impact Weapon Maul Build | -11 -10 -9 -8 ------- Run | Yrd Mat Mat Mat Slots Evolved 4 | . . 2 2 Power . | . . . . Propulsion . | . . . . Utility 4 | . . 2 2 Weapon . | . . . . Parts Attached 9 | . 2 2 5 Power . | . . . . Engine . | . . . . Core . | . . . . Reactor . | . . . . Propulsion 2 | . . 1 1 Treads . | . . . . Leg . | . . . . Wheel . | . . . . Hover . | . . . . Flight 2 | . . 1 1 Utility 6 | . 2 . 4 Device 2 | . 2 . . Storage . | . . . . Processor 4 | . . . 4 Hackware . | . . . . Protection . | . . . . Artifact . | . . . . Weapon 1 | . . 1 . Energy Gun . | . . . . Energy Cannon . | . . . . Ballistic Gun . | . . . . Ballistic Cannon . | . . . . Launcher . | . . . . Special Weapon . | . . . . Impact Weapon 1 | . . 1 . Slashing Weapon . | . . . . Piercing Weapon . | . . . . Special Melee Weapon . | . . . . Unidentified Prototypes . | . . . . Parts Lost 3 | . . 2 1 Power . | . . . . Propulsion 1 | . . . 1 Utility 2 | . . 2 . Weapon . | . . . . Highest Loss Streak 2 | . . 2 1 To Critical Strikes . | . . . . Average Backups 2 | 5 . 3 4 Power . | 1 . . 1 Propulsion . | 3 . . . Utility . | . . 1 1 Weapon . | 1 . . 1 Tool/Special . | . . . . Unused Backups 3 | . . . 3 Power 2 | . . . 2 Propulsion . | . . . . Utility 1 | . . . 1 Weapon . | . . . . Tool/Special . | . . . . Average Slot Usage (%) 16 | . 12 13 23 Flight 1 | . . 1 4 Device 8 | . 12 12 . Processor 6 | . . . 19 Peak Build Rating 17 | 6 2 4 17 Average Rating 4 | 6 . 1 9 On Entrance 2 | 6 . 2 1 Naked Turns 64 | . 22 24 18 Heaviest Build 2 | . 2 2 . Greatest Support 4 | 3 3 4 4 Greatest Overweight (x) . | . . . . Average Overweight (x) . | . . . . Largest Inventory Capacity 8 | 8 5 5 5 Average Capacity 5 | 8 5 5 5 Most Carried 5 | 5 1 5 5 Average Carried 2 | 3 . 3 4 Final Capacity 5 | 5 5 5 5 Final Carried 4 | . 1 4 4 Class Distribution -------------------- 100% | Mutant Dominant Class ---------------- Mutant | -10/Materials Mutant | -9/Materials Mutant | -8/Materials Resources | -11 -10 -9 -8 ----------- Run | Yrd Mat Mat Mat Matter Collected 230 | 193 . 37 . Remotely . | . . . . Salvage Created 55 | . . 55 . Parts 1 | . . 1 . Haulers Intercepted . | . . . . Recyclers Shooed . | . . . . Parts Field Recycled . | . . . . Retrieved Matter . | . . . . Parts Self-Destructed . | . . . . Prevented . | . . . . Kills | -11 -10 -9 -8 ------- Run | Yrd Mat Mat Mat Combat Hostiles Destroyed 1 | . . 1 . Classes Destroyed 1 | . . 1 . Sentry 1 | . . 1 . Best Kill Streak 1 | . . 1 . Combat Bots Only 1 | . . 1 . Max Kills in Single Turn 1 | . . 1 . Gunslinging . | . . . . Exploded . | . . . . Melee . | . . . . Uniques/NPCs Destroyed . | . . . . Combat | -11 -10 -9 -8 -------- Run | Yrd Mat Mat Mat Hostile Shots Fired 96 | . 12 65 19 Missed 47 | . 7 29 11 Hits 49 | . 5 36 8 Melee 1 | . . . 1 Projectile 48 | . 5 36 7 Critical Strikes 3 | . . 2 1 Damage Taken 623 | . 56 421 146 Core 508 | . 56 342 110 Absorbed by Shields . | . . . . Core Remaining (%) 63 | 100 77 14 . Volleys Fired . | . . . . Largest . | . . . . Hottest . | . . . . Shots Fired . | . . . . Gun . | . . . . Cannon . | . . . . Launcher . | . . . . Special . | . . . . Kinetic . | . . . . Thermal . | . . . . Explosive . | . . . . Electromagnetic . | . . . . Robot Hit Streak . | . . . . Robot Miss Streak . | . . . . Penetration Max . | . . . . Secondary Targets . | . . . . Shots Hit Robots 1 | . . 1 . Core Hits . | . . . . Critical Kills . | . . . . Critical Parts Destroyed 1 | . . 1 . Critical Strikes 1 | . . 1 . Smash 1 | . . 1 . Melee Attacks 1 | . . 1 . Impact 1 | . . 1 . Slashing . | . . . . Piercing . | . . . . Sneak Attacks . | . . . . Combat Hostiles . | . . . . Follow-up Attacks . | . . . . Damage Inflicted 27 | . . 27 . Guns . | . . . . Cannons . | . . . . Explosions . | . . . . Melee 27 | . . 27 . Ramming . | . . . . Kinetic . | . . . . Thermal . | . . . . Explosive . | . . . . Electromagnetic . | . . . . Impact 27 | . . 27 . Slashing . | . . . . Piercing . | . . . . Highest Corruption . | . . . . Average Corruption . | . . . . Corruption Purged . | . . . . Corruption Blocked . | . . . . Overload Shots . | . . . . Overflow Damage 27 | . . 27 . Projectiles . | . . . . Explosions . | . . . . Melee 27 | . . 27 . Knockbacks . | . . . . Impact . | . . . . Kinetic . | . . . . Secondary . | . . . . Self-Inflicted Damage . | . . . . Shots . | . . . . Rammed . | . . . . Targets Rammed . | . . . . Kicked . | . . . . Crushed . | . . . . Highest Temperature . | . . . . Average Temperature . | . . . . Received Heat Transfer 234 | . 30 141 63 Siege Activations . | . . . . Martial Activations . | . . . . Shielding Activations . | . . . . Robots Disrupted . | . . . . Combat Hostiles . | . . . . Robots Corrupted 1 | . . 1 . Combat Hostiles 1 | . . 1 . Parts Fried . | . . . . Impact Corruptions 1 | . . 1 . Robots Melted . | . . . . Combat Hostiles . | . . . . Parts Melted . | . . . . Heat Transferred . | . . . . Parts Sabotaged . | . . . . Parts Stolen . | . . . . Parts Stripped . | . . . . Power Chain Reactions . | . . . . Alert | -11 -10 -9 -8 ------- Run | Yrd Mat Mat Mat Maximum Alert Level 1 | . . . 1 Low Security (%) 98 | 100 100 100 95 Level 1 1 | . . . 4 Level 2 . | . . . . Level 3 . | . . . . Level 4 . | . . . . Level 5 . | . . . . High Security . | . . . . Max Security . | . . . . Peak Influence 205 | . 7 30 205 Initial 1 | . . . 1 Average 31 | . 1 5 85 Influence Increases 284 | . 7 45 232 Destroy 0b10 Robot/C 20 | . . 20 . Destroy Leader 10 | . . 10 . Successful Hack 14 | . 7 . 7 Partial Spotted 15 | . . . 15 Lose Combat Pursuer 225 | . . 15 210 Influence Decreases 89 | . 7 40 42 Entered New Map 4 | . . . 4 Time Decay 57 | . 7 20 30 Lost Part 28 | . . 20 8 Squads Dispatched 6 | . 3 1 2 Investigation 4 | . 2 . 2 Extermination . | . . . . Reinforcement 2 | . 1 1 . Assault . | . . . . Garrison . | . . . . Intercept . | . . . . Searches Triggered . | . . . . Construction Impeded . | . . . . Haulers Reinforced . | . . . . Active Scanning Responses . | . . . . Cargo Convoy Interrupts . | . . . . Stealth | -11 -10 -9 -8 --------- Run | Yrd Mat Mat Mat Distress Signals 2 | . . . 2 Communications Jammed . | . . . . Distress Signals . | . . . . Times Spotted 34 | . 5 10 19 Peak Tracking Total 14 | . 5 7 14 Tactical Retreats 4 | . . 1 3 Traps | -11 -10 -9 -8 ------- Run | Yrd Mat Mat Mat Traps Triggered . | . . . . Indirectly . | . . . . Trap Hack Attempts . | . . . . Triggered . | . . . . Disarmed . | . . . . Reprogrammed . | . . . . Reused . | . . . . Traps Extracted . | . . . . Installed . | . . . . Triggered . | . . . . Machines | -11 -10 -9 -8 ---------- Run | Yrd Mat Mat Mat Machines Disabled . | . . . . Max in Single Turn . | . . . . Machines Repaired . | . . . . Machines Dismantled . | . . . . Machines Sabotaged . | . . . . Overloaded Fab Kills . | . . . . Hacking | -11 -10 -9 -8 --------- Run | Yrd Mat Mat Mat Machines Accessed 4 | . 2 . 2 Terminals 4 | . 2 . 2 Fabricators . | . . . . Repair Stations . | . . . . Recycling Units . | . . . . Scanalyzers . | . . . . Garrison Access . | . . . . Total Hacks 15 | . 6 . 9 Successful 3 | . 2 . 1 Failed 12 | . 4 . 8 Catastrophic 4 | . 1 . 3 Database Lockouts . | . . . . Manual 11 | . 3 . 8 Terminals 15 | . 6 . 9 Fabricators . | . . . . Repair Stations . | . . . . Recycling Units . | . . . . Scanalyzers . | . . . . Garrison Access . | . . . . Terminal Hacks 3 | . 2 . 1 Terminal Index 1 | . 1 . . Registered Components 2 | . 1 . 1 Fabricator Hacks . | . . . . Repair Station Hacks . | . . . . Recycling Unit Hacks . | . . . . Scanalyzer . | . . . . Garrison Access Hacks . | . . . . Unauthorized Hacks . | . . . . Terminals . | . . . . Fabricators . | . . . . Repair Stations . | . . . . Recycling Units . | . . . . Scanalyzers . | . . . . Garrison Access . | . . . . Data Cores Recovered . | . . . . Used . | . . . . Hacking Detections 4 | . 2 . 2 Full Trace Events 4 | . 2 . 2 Feedback Events . | . . . . Feedback Blocked . | . . . . Robot Schematics Acquired . | . . . . Robots Built . | . . . . Authchips . | . . . . Time . | . . . . Total Robot Build Rating . | . . . . Part Schematics Acquired . | . . . . Parts Built . | . . . . Authchips . | . . . . Time . | . . . . Total Part Build Rating . | . . . . Parts Repaired . | . . . . Time . | . . . . Parts Recycled . | . . . . Recycled Matter . | . . . . Retrieved Matter . | . . . . Retrieved Components . | . . . . Parts Scanalyzed . | . . . . Part Schematics Acquired . | . . . . Parts Damaged . | . . . . Bothacking | -11 -10 -9 -8 ------------ Run | Yrd Mat Mat Mat Used RIF Installer . | . . . . Robots Hacked . | . . . . Non-combat . | . . . . Combat . | . . . . Robot Hacks Applied . | . . . . Relay Couplers Released . | . . . . Fabnet Peak Effective % . | . . . . Robots Rewired . | . . . . Allies Hacked . | . . . . Hacks Repelled . | . . . . Allies | -11 -10 -9 -8 -------- Run | Yrd Mat Mat Mat Total Allies . | . . . . Largest Group . | . . . . Highest-Rated Group . | . . . . Highest-Rated Ally . | . . . . Total Orders . | . . . . Ally Attacks . | . . . . Total Damage . | . . . . Kills . | . . . . Allies Corrupted . | . . . . Allies Melted . | . . . . Intel | -11 -10 -9 -8 ------- Run | Yrd Mat Mat Mat Active Infowar (turns) 108 | . 66 42 . Terrain 103 | . 66 37 . Seismic 62 | . 20 42 . Robot Analysis Total . | . . . . Derelict Logs Recovered . | . . . . Drone Launches . | . . . . Drone Recoveries . | . . . . Exploration | -11 -10 -9 -8 ------------- Run | Yrd Mat Mat Mat Turns Passed 246 | 3 88 70 85 Spaces Moved 455 | 1 165 122 167 Core 360 | 1 165 114 80 Treads . | . . . . Legs . | . . . . Wheels . | . . . . Hover . | . . . . Flight 95 | . . 8 87 Fastest Speed 40 | 50 50 40 40 Average Speed 47 | 50 50 49 44 Slowest Speed 50 | 50 50 50 50 Overloaded Moves . | . . . . Propulsion Burnouts . | . . . . Robots Hopped 4 | . . 1 3 Potential Cave-ins . | . . . . Cave-ins Triggered . | . . . . Exploration Rate (%) 24 | 2 44 23 29 Regions Visited 3 Branch Regions . Pre-discovered Areas . | . . . . Known Exits Taken . | . . . . Unknown Exits Taken 3 | 1 1 1 . Scrap Searched . | . . . . Spaces Dug . | . . . . Terrain Destroyed . | . . . . Melee . | . . . . Projectile . | . . . . AOE . | . . . . Terrain Rammed . | . . . . Walls Destroyed . | . . . . Machines Disabled . | . . . . Actions | -11 -10 -9 -8 --------- Run | Yrd Mat Mat Mat Total 473 | 6 168 128 171 Wait 1 | . 1 . . Move 445 | . 164 119 162 Hop 3 | . . 1 2 Pick Up 6 | . 1 4 1 Fast Attach 7 | . 2 . 5 Attach 3 | . . 2 1 Detach 1 | . . 1 . Swap . | . . . . Drop 6 | 6 . . . Fire . | . . . . Melee 1 | . . 1 . Ram . | . . . . Kick . | . . . . Crush . | . . . . Escape Stasis . | . . . . Rewire . | . . . . Trap . | . . . . Miscellaneous . | . . . . Route ------- -11/Scrapyard -10/Materials -9/Materials -8/Materials History --------- Turn | Location | Event 4 | -11/Scrapyard | Released all parts (6) 4 | -11/Scrapyard | Discovered new exit (range 0) 4 | -11/Scrapyard | Entered Materials 86 | -10/Materials | Discovered new exit (range 12) 92 | -10/Materials | Entered another Materials area 92 | -9/Materials | Evolved 2 slots: Utility x2 136 | -9/Materials | Core integrity fell below 50% 155 | -9/Materials | Core integrity fell below 20% 158 | -9/Materials | Discovered new exit (range 10) 162 | -9/Materials | Entered another Materials area 162 | -8/Materials | Evolved 2 slots: Utility x2 247 | -8/Materials | Self-destructed Last Messages --------------- XNKSBTFTR0: Propulsion Shielding IF2MR3I9B3: Hpw. Tractor Beam 9ZEFLSOOFO: Terrain Scan Processor E2H4URX4R5: Insulated Plating Downloaded coordinate data. 00171_ ALERT: Suspicious activity at Terminal M001. Dispatching Investigation squad. 00177_ Flight Unit destroyed. 00191_ K-01 Serf collects debris. 00195_ Acquired Imp. Melee Analysis Suite. 00202_ K-01 Serf collects debris. 00210_ Acquired Lgt. Nuclear Core. 00213_ K-01 Serf collects debris. 00217_ W-25 Informer sends out distress signal. 00225_ Flight Unit severed. 00226_ Acquired Flight Unit. 00238_ Connecting with Terminal... 00238_ ALERT: Suspicious activity at Terminal M010. Dispatching Investigation squad. 00244_ K-01 Serf collects debris. Map ----- +----------------------------------------------------+ | | | | | | | | | | | | | | | | | | | | | | | | | | | ?????????????????????????????????????????????????? | | ?????????????????????????????????????????????????? | | ?????????????????????????????????????????????????? | | ????????????????????????????###??????????????????? | | ????????????????????????????# ""?????????????????? | | ????????????????????????????# ""T"???????????????? | | ????????????????????????????# ??????????????? | | ????????????????????????????? ?????????????? | | ????????????????????????????? ?????????????? | | ??????????????????######?####? """??????????????? | | ??????????????????# # #? """??????????????? | | ??????????????????# """ # +?? ""???????????????? | | ??????????????????# """ @ #?? ???????????????? | | ??????????????????# """ # #??#+#??########?????? | | ??????????????????# """ # #### #### ! #####?? | | ?????????????!????# ?# + ## #?? | | ??????????????????######?# #### [ ## #?? | | ?????????????????????????######Y #??# ## +?? | | ??????????????????????????????# l#??# "Y" ## #?? | | ?????????????????????????????## ##?# """ ## ##? | | ?????????????????????######### #######+## #? | | ?????????????????????# #? | | ???????? ##### ##### T #? | | ???????? #???# #######+## #? | | ???????????# ##### #???######????????######? | | ?????????????????????# #???????????????????????? | | ?????????????????????# #???????????????????????? | | ?????????????????????# #???????????????????????? | | ?????????????????????# #???????????????????????? | | ?????????????????????# #???????????????????????? | | ?????????????????????# #?????????????##????????? | | ?????????????????????# #????????????""#????????? | | ?????????????????????# #???????????"R"#????????? | | ?????????????????????# ######+#####" "#####????? | | ?????????????????????# #????? | | ??????????????????#### #????? | | ???????????+ ** """ ?????? | +----------------------------------------------------+ Best States ------------- Heat Dissipation 31 Energy Generation 5 Energy Capacity 100 Matter Stores 300 Matter Capacity 300 Sight Range 16 Terrain Scan Range 14 Terrain Scan Density 10 Evasion (%) 62 Melee Accuracy 24 Item Schematics ----------------- None Robot Schematics ------------------ None Fabricated ------------ Nothing Repaired ---------- Nothing Alien Tech Used ----------------- None Achievements -------------- None Challenges ------------ None Game ------ Seed SpreadCentriumMonowheel Manual? 0 Play Time 00:06:24 Cumulative 520.5 hours Start 2025.06.04 @ 01:32:49 End 2025.06.04 @ 01:42:09 Sessions 1 Manual Loads 0 Difficulty Rogue Special Mode None Game No. 572 Rogue 572 Adventurer 0 Explorer 0 Win Type - Total 15 Types 9/0/5/1/0/0/0/0/0/0 Lore% 82 Gallery% 82 Achievement% 82 Wizard Run 0 Options --------- Layout 0 ASCII 0 Keyboard 0 Movement Numpad Keybinds 0 Fullscreen 1 Font 18/SmallcapsGlow Map View 76x50 Zoom Use 0% Tactical HUD 1 Map Filters NONE Filters NONE Steam 1 RUN: 2ae43d57-7af9-4306-844a-e2fca802c606